Cogmind - Beta 15 @@@ ROGUE MODE // 2025.09.11 @ 23:01:43 Player: Crafthog Result: Destroyed by RD-UOA(R) with Subdweller Beam Cannon Performance ------------- Evolutions (0) 0 Regions Visited (2) 400 Robots Destroyed (1) 5 Value Destroyed (10) 10 Prototype IDs (0) 0 Alien Tech Used (0) 0 Bonus (0) 0 TOTAL SCORE: 415 Bonus ------- None Cogmind --------- Core Integrity 0/250 Matter 300/300 Energy 100/100 System Corruption 0% Temperature Cool (9) Movement Core (100) Ox1 Location -10/Subcaves Parts ------- > --- POWER (1) -------- (None) > --- PROPULSION (2) --- (None) > --- UTILITY (2) ------ Small Storage Unit > --- WEAPON (2) ------- (None) > --- INVENTORY (8) ---- Ion Engine Aluminum Leg Aluminum Leg Improved Heat Sink Light Cannon Peak State ------------ > --- POWER ------------ Ion Engine > --- PROPULSION ------- Aluminum Leg Aluminum Leg > --- UTILITY ---------- Improved Heat Sink Small Storage Unit > --- WEAPON ----------- EM Pulse Gun EM Pulse Gun > --- INVENTORY -------- Ion Engine Aluminum Leg Aluminum Leg Improved Heat Sink Assault Rifle Light Cannon [Rating: 9] Favorites ----------- Power Ion Engine Engine Ion Engine Propulsion Aluminum Leg Leg Aluminum Leg Utility Small Storage Unit Device Improved Heat Sink Storage Small Storage Unit Weapon EM Pulse Gun Energy Gun EM Pulse Gun Ballistic Gun Assault Rifle Build | -11 -10 -10 ------- Run | Yrd Mat Sub Slots Evolved . | . . . Power . | . . . Propulsion . | . . . Utility . | . . . Weapon . | . . . Parts Attached 8 | 6 . 2 Power 1 | 1 . . Engine 1 | 1 . . Core . | . . . Reactor . | . . . Propulsion 2 | 2 . . Treads . | . . . Leg 2 | 2 . . Wheel . | . . . Hover . | . . . Flight . | . . . Utility 2 | 1 . 1 Device 1 | . . 1 Storage 1 | 1 . . Processor . | . . . Hackware . | . . . Protection . | . . . Artifact . | . . . Weapon 3 | 2 . 1 Energy Gun 2 | 2 . . Energy Cannon . | . . . Ballistic Gun 1 | . . 1 Ballistic Cannon . | . . . Launcher . | . . . Special Weapon . | . . . Impact Weapon . | . . . Slashing Weapon . | . . . Piercing Weapon . | . . . Special Melee Weapon . | . . . Unidentified Prototypes . | . . . Parts Lost 7 | . . 7 Power 1 | . . 1 Propulsion 2 | . . 2 Utility 1 | . . 1 Weapon 3 | . . 3 Highest Loss Streak 7 | . . 7 To Critical Strikes 1 | . . 1 Average Backups 3 | 1 2 4 Power . | . 1 1 Propulsion . | . . 1 Utility . | . . . Weapon 1 | . 1 1 Tool/Special . | . . . Unused Backups 5 | . . 5 Power 1 | . . 1 Propulsion 2 | . . 2 Utility 1 | . . 1 Weapon 1 | . . 1 Tool/Special . | . . . Average Slot Usage (%) 89 | . 85 90 Engine 13 | . 14 13 Leg 27 | . 28 27 Device 6 | . . 6 Storage 14 | . 14 14 Energy Gun 26 | . 28 26 Peak Build Rating 9 | 6 6 9 Average Rating 6 | 4 6 7 On Entrance 4 | . 6 6 Naked Turns . | . . . Heaviest Build 15 | 14 14 15 Greatest Support 20 | 20 20 20 Greatest Overweight (x) 1 | 1 . 1 Average Overweight (x) . | . . . Largest Inventory Capacity 8 | 8 8 8 Average Capacity 7 | 7 8 8 Most Carried 7 | 5 3 7 Average Carried 3 | 1 2 4 Final Capacity 8 | 8 8 8 Final Carried 5 | 2 3 5 Class Distribution -------------------- 100% | Mutant Dominant Class ---------------- Mutant | -10/Materials Mutant | -10/Subcaves Resources | -11 -10 -10 ----------- Run | Yrd Mat Sub Matter Collected 271 | 103 . 168 Remotely . | . . . Salvage Created 15 | . . 15 Parts 1 | . . 1 Haulers Intercepted . | . . . Recyclers Shooed . | . . . Parts Field Recycled . | . . . Retrieved Matter . | . . . Parts Self-Destructed 9 | . . 9 Prevented . | . . . Kills | -11 -10 -10 ------- Run | Yrd Mat Sub Combat Hostiles Destroyed 1 | . . 1 Guns 1 | . . 1 Classes Destroyed 1 | . . 1 Swarmer 1 | . . 1 Best Kill Streak 1 | . . 1 Combat Bots Only 1 | . . 1 Max Kills in Single Turn 1 | . . 1 Gunslinging . | . . . Exploded . | . . . Melee . | . . . Uniques/NPCs Destroyed . | . . . Combat | -11 -10 -10 -------- Run | Yrd Mat Sub Hostile Shots Fired 53 | . . 53 Missed 17 | . . 17 Hits 36 | . . 36 Projectile 36 | . . 36 AOE 7 | . . 7 Critical Strikes 1 | . . 1 Damage Taken 782 | . . 782 Core 268 | . . 268 Absorbed by Shields . | . . . Core Remaining (%) 100 | 100 . . Volleys Fired 7 | . . 7 Largest 2 | . . 2 Hottest 80 | . . 80 Shots Fired 12 | . . 12 Gun 12 | . . 12 Cannon . | . . . Launcher . | . . . Special . | . . . Kinetic 2 | . . 2 Thermal . | . . . Explosive . | . . . Electromagnetic 10 | . . 10 Robot Hit Streak 3 | . . 3 Robot Miss Streak 3 | . . 3 Penetration Max . | . . . Secondary Targets . | . . . Shots Hit Robots 5 | . . 5 Core Hits 1 | . . 1 Critical Kills . | . . . Critical Parts Destroyed . | . . . Critical Strikes . | . . . Melee Attacks . | . . . Impact . | . . . Slashing . | . . . Piercing . | . . . Sneak Attacks . | . . . Combat Hostiles . | . . . Follow-up Attacks . | . . . Damage Inflicted 65 | . . 65 Guns 65 | . . 65 Cannons . | . . . Explosions . | . . . Melee . | . . . Ramming . | . . . Kinetic 10 | . . 10 Thermal . | . . . Explosive . | . . . Electromagnetic 55 | . . 55 Impact . | . . . Slashing . | . . . Piercing . | . . . Highest Corruption . | . . . Average Corruption . | . . . Corruption Purged . | . . . Corruption Blocked . | . . . Overload Shots . | . . . Overflow Damage . | . . . Projectiles . | . . . Explosions . | . . . Melee . | . . . Knockbacks . | . . . Impact . | . . . Kinetic . | . . . Secondary . | . . . Self-Inflicted Damage . | . . . Shots . | . . . Rammed . | . . . Targets Rammed . | . . . Kicked . | . . . Crushed . | . . . Highest Temperature . | . . . Average Temperature . | . . . Received Heat Transfer 45 | . . 45 Siege Activations . | . . . Martial Activations . | . . . Shielding Activations . | . . . Robots Disrupted . | . . . Combat Hostiles . | . . . Robots Corrupted . | . . . Combat Hostiles . | . . . Parts Fried . | . . . Impact Corruptions . | . . . Robots Melted . | . . . Combat Hostiles . | . . . Parts Melted . | . . . Heat Transferred . | . . . Parts Sabotaged . | . . . Parts Stolen . | . . . Parts Stripped . | . . . Power Chain Reactions . | . . . Alert | -11 -10 -10 ------- Run | Yrd Mat Sub Maximum Alert Level . | . . . Low Security (%) 100 | 100 100 . Level 1 . | . . . Level 2 . | . . . Level 3 . | . . . Level 4 . | . . . Level 5 . | . . . High Security . | . . . Max Security . | . . . Peak Influence . | . . . Initial . | . . . Average . | . . . Influence Increases 80 | . . 80 Destroy 0b10 Robot/C 20 | . . 20 Lose Combat Pursuer 60 | . . 60 Influence Decreases 80 | . . 80 Time Decay 80 | . . 80 Squads Dispatched . | . . . Investigation . | . . . Extermination . | . . . Reinforcement . | . . . Assault . | . . . Garrison . | . . . Intercept . | . . . Searches Triggered . | . . . Construction Impeded . | . . . Haulers Reinforced . | . . . Active Scanning Responses . | . . . Cargo Convoy Interrupts . | . . . Stealth | -11 -10 -10 --------- Run | Yrd Mat Sub Distress Signals . | . . . Communications Jammed . | . . . Distress Signals . | . . . Times Spotted 12 | . . 12 Peak Tracking Total 6 | . . 6 Tactical Retreats 2 | . . 2 Traps | -11 -10 -10 ------- Run | Yrd Mat Sub Traps Triggered . | . . . Indirectly . | . . . Trap Hack Attempts . | . . . Triggered . | . . . Disarmed . | . . . Reprogrammed . | . . . Reused . | . . . Traps Extracted . | . . . Installed . | . . . Triggered . | . . . Machines | -11 -10 -10 ---------- Run | Yrd Mat Sub Machines Disabled . | . . . Max in Single Turn . | . . . Machines Repaired . | . . . Machines Dismantled . | . . . Machines Sabotaged . | . . . Overloaded Fab Kills . | . . . Hacking | -11 -10 -10 --------- Run | Yrd Mat Sub Machines Accessed 2 | . . 2 Terminals . | . . . Fabricators . | . . . Repair Stations . | . . . Recycling Units . | . . . Scanalyzers . | . . . Garrison Access . | . . . Total Hacks 3 | . . 3 Successful 3 | . . 3 Failed . | . . . Catastrophic . | . . . Database Lockouts . | . . . Manual . | . . . Terminals . | . . . Fabricators . | . . . Repair Stations . | . . . Recycling Units . | . . . Scanalyzers . | . . . Garrison Access . | . . . Terminal Hacks 3 | . . 3 Record 1 | . . 1 Open Door 1 | . . 1 Release Object 1 | . . 1 Fabricator Hacks . | . . . Repair Station Hacks . | . . . Recycling Unit Hacks . | . . . Scanalyzer . | . . . Garrison Access Hacks . | . . . Unauthorized Hacks . | . . . Terminals . | . . . Fabricators . | . . . Repair Stations . | . . . Recycling Units . | . . . Scanalyzers . | . . . Garrison Access . | . . . Data Cores Recovered . | . . . Used . | . . . Hacking Detections . | . . . Full Trace Events . | . . . Feedback Events . | . . . Feedback Blocked . | . . . Robot Schematics Acquired . | . . . Robots Built . | . . . Authchips . | . . . Time . | . . . Total Robot Build Rating . | . . . Part Schematics Acquired . | . . . Parts Built . | . . . Authchips . | . . . Time . | . . . Total Part Build Rating . | . . . Parts Repaired . | . . . Time . | . . . Parts Recycled . | . . . Recycled Matter . | . . . Retrieved Matter . | . . . Retrieved Components . | . . . Parts Scanalyzed . | . . . Part Schematics Acquired . | . . . Parts Damaged . | . . . Bothacking | -11 -10 -10 ------------ Run | Yrd Mat Sub Used RIF Installer . | . . . Robots Hacked . | . . . Non-combat . | . . . Combat . | . . . Robot Hacks Applied . | . . . Relay Couplers Released . | . . . Fabnet Peak Effective % . | . . . Robots Rewired . | . . . Allies Hacked . | . . . Hacks Repelled . | . . . Allies | -11 -10 -10 -------- Run | Yrd Mat Sub Total Allies . | . . . Largest Group . | . . . Highest-Rated Group . | . . . Highest-Rated Ally . | . . . Total Orders . | . . . Ally Attacks . | . . . Total Damage . | . . . Kills . | . . . Allies Corrupted . | . . . Allies Melted . | . . . Intel | -11 -10 -10 ------- Run | Yrd Mat Sub Active Infowar (turns) . | . . . Robot Analysis Total . | . . . Derelict Logs Recovered 1 | . . 1 Drone Launches . | . . . Drone Recoveries . | . . . Exploration | -11 -10 -10 ------------- Run | Yrd Mat Sub Turns Passed 580 | 77 47 456 Spaces Moved 447 | 57 39 351 Core 16 | 15 . 1 Treads . | . . . Legs 431 | 42 39 350 Wheels . | . . . Hover . | . . . Flight . | . . . Fastest Speed 50 | 50 120 100 Average Speed 118 | 110 120 119 Slowest Speed 120 | 120 120 120 Overloaded Moves . | . . . Propulsion Burnouts . | . . . Robots Hopped . | . . . Potential Cave-ins . | . . . Cave-ins Triggered . | . . . Exploration Rate (%) 10 | 3 6 22 Regions Visited 2 Branch Regions 1 Pre-discovered Areas . | . . . Known Exits Taken . | . . . Unknown Exits Taken 2 | 1 1 . Scrap Searched 1 | . . 1 Spaces Dug . | . . . Terrain Destroyed . | . . . Melee . | . . . Projectile . | . . . AOE . | . . . Terrain Rammed . | . . . Walls Destroyed . | . . . Machines Disabled . | . . . Actions | -11 -10 -10 --------- Run | Yrd Mat Sub Total 484 | 71 39 374 Wait 11 | 1 . 10 Move 445 | 56 38 351 Hop . | . . . Pick Up 13 | 8 1 4 Fast Attach . | . . . Attach 8 | 6 . 2 Detach . | . . . Swap . | . . . Drop . | . . . Fire 7 | . . 7 Melee . | . . . Ram . | . . . Kick . | . . . Crush . | . . . Escape Stasis . | . . . Rewire . | . . . Trap . | . . . Miscellaneous . | . . . Route ------- -11/Scrapyard -10/Materials -10/Subcaves (discovered 2 exits: [*Rec] / [Scr]) History --------- Turn | Location | Event 6 | -11/Scrapyard | Discovered new exit (range 15) 78 | -11/Scrapyard | Entered Materials 79 | -10/Materials | Met a group of wandering Federalists 123 | -10/Materials | Discovered new exit (range 3) 125 | -10/Materials | Entered Subcaves 126 | -10/Subcaves | Continued accompanying wandering Federalists (5) 307 | -10/Subcaves | Build established: Mutant 328 | -10/Subcaves | Discovered new exit (range 11) 352 | -10/Subcaves | Lost 6 allies 470 | -10/Subcaves | Learned Materials stockpile data 558 | -10/Subcaves | Ambushed by Subdweller buried in earth 575 | -10/Subcaves | Ambushed by Subdweller buried in earth 575 | -10/Subcaves | Ambushed by Subdweller buried in earth 576 | -10/Subcaves | Core integrity fell below 50% 580 | -10/Subcaves | Core integrity fell below 20% 581 | -10/Subcaves | Destroyed by RD-UOA(R) with Subdweller Beam Cannon Last Messages --------------- Take all precautions to prevent this from happening. >>Release Inventory Accessing inventory controls... Collection purity confirmed 100%... Ejecting SUBCON Basin... Delivery behind schedule, handle with care! Subatomizers dissect the Imp. Heat Sink. Subatomizers dissect the Aluminum Leg. JJ-32V(R): "NOSTUCKSUB!" EM Pulse Gun destroyed. Ion Engine destroyed. Subatomizers dissect the Aluminum Leg. Aluminum Leg destroyed. Acquired 1 matter. Imp. Heat Sink destroyed. RD-UOA(R): "ARGHSUB!" SS-8U9(R): "THANKSYOU!" Critical hit (Destroy). Assault Rifle destroyed. Aluminum Leg destroyed. Map ----- +----------------------------------------------------+ | ????????????????#" & #?????????????????????????? | | ????????????????#" #?????????????????????????? | | ????????????????#"""" "#??#####??????????????????? | | ????????????????##### ##?## #??????????????????? | | ??????????????????#"" "### #??????????????????? | | ?????????????????## X## ####???????????????? | | ????????????????## ### ##??????????????? | | ????????????????#% #### # #??????????????? | | ???????????????### ## # #####??????????????? | | ???????????????# ### # ##??????????????????? | | ????????????##?# ##???????????????????? | | ???????????# ## ### ##???###?????????????? | | ????????????# ##### #######???????? | | ????????????## # ##??????? | | ????????????## ### "#??????? | | ????????????# #??### ##; #??????? | | ????????????# #?????## #; ###????? | | ????###?????## ###????## ; * #????? | | ##??# ##?????# ##????# !% ### ?? | | #### ####### #????#% =% | | ## # # #????# ; | | > ###??# # ### | | ## #### ; ; #?? | | # ### #### %%# # % ; % #? | | # ###?# #??#### R %# | | # ##???# ##?????## @ ;R ; % # | | #####????###???????# ;##;;;;;## % #? | | ???????????????????# ## ### ##?#% ## #? | | ???????????????????#### #?######??? ##???? | | ??????????????????????# #?????????? #????? | | ??????????????????????## ##########??? #????? | | ??????????????????????# ###" """#??? #####????? | | ??????????????????????# ## "#???###????????? | | ??????????????????????# *# "#??????????????? | | ??????????????????##### %[% ""##?????????????? | | ??????????????????# % % <#?????????????? | | ??????????????????# *%= % ""##?????????????? | | ??????????????????## ##### "#??????????????? | | ???????????????????# ##???# "#??????????????? | | ???????????????????# %##???#" """#??????????????? | | ????###????????????## #???########??????????????? | | ???? ????????????# #?????????????????????????? | | ????? ??????????# ##?????????????????????????? | | ??????? ?????????# #?????????????????????????? | | ????????? ????????## ##????????????????????????? | | ?????????## ????????## #????????????????????????? | | ?????????# ##????## ##????????????????????????? | | ?????????# ##?## # #????????????????????????? | | ?????????# ### ## ##???????????????????????? | | ?????????## # #### #???????????????????????? | +----------------------------------------------------+ Best States ------------- Heat Dissipation 39 Energy Generation 10 Energy Capacity 250 Matter Stores 300 Matter Capacity 300 Sight Range 16 Terrain Scan Density 10 Evasion (%) 55 Item Schematics ----------------- None Robot Schematics ------------------ None Fabricated ------------ Nothing Repaired ---------- Nothing Alien Tech Used ----------------- None Achievements -------------- None Challenges ------------ None Game ------ Seed AssembledRecyclingClaymores Manual? 0 Play Time 00:06:29 Cumulative 5.3 hours Start 2025.09.11 @ 22:54:31 End 2025.09.11 @ 23:01:43 Sessions 1 Manual Loads 0 Difficulty Rogue Special Mode None Game No. 13 Rogue 13 Adventurer 0 Explorer 0 Win Type - Total 0 Types 0/0/0/0/0/0/0/0/0/0 Lore% 8 Gallery% 7 Achievement% 11 Wizard Run 0 Options --------- Layout 1 ASCII 0 Keyboard 0 Movement Numpad Keybinds 0 Fullscreen 1 Font 24/Smallcaps Map View 76x35 Zoom Use 0% Tactical HUD 0 Map Filters NONE Filters NONE Steam 1 RUN: 07a019b6-36fd-437d-a483-9b4ace914fba